[Event "Live Chess"]
[Site "Chess.com"]
[Date "2023.05.21"]
[Round "-"]
[White "Biranidun"]
[Black "AMCWAML"]
[Result "1-0"]
[WhiteElo "2528"]
[BlackElo "2304"]
[TimeControl "300"]
[EndTime "6:01:55 PDT"]
[Termination "Biranidun won on time"]

1. e4 {[%clk 0:04:58.6]} 1... c5 {[%clk 0:04:59]} 2. Nf3 {[%clk 0:04:57.4]} 2...
Nc6 {[%clk 0:04:57.9]} 3. d4 {[%clk 0:04:56.4]} 3... cxd4 {[%clk 0:04:57.8]} 4.
Nxd4 {[%clk 0:04:55.6]} 4... e5 {[%clk 0:04:57.2]} 5. Nb5 {[%clk 0:04:54.1]}
5... d6 {[%clk 0:04:56.3]} 6. N1c3 {[%clk 0:04:53]} 6... a6 {[%clk 0:04:54.9]}
7. Na3 {[%clk 0:04:49.8]} 7... Be6 {[%clk 0:04:54.4]} 8. Nc4 {[%clk 0:04:48.1]}
8... Rb8 {[%clk 0:04:53.6]} 9. a4 {[%clk 0:04:31.7]} 9... b5 {[%clk 0:04:35.3]}
10. axb5 {[%clk 0:04:23.5]} 10... axb5 {[%clk 0:04:35.2]} 11. Nxb5 {[%clk
0:04:14.4]} 11... Rxb5 {[%clk 0:04:17.5]} 12. Nxd6+ {[%clk 0:04:13.6]} 12...
Bxd6 {[%clk 0:04:16.9]} 13. Bxb5 {[%clk 0:04:12.1]} 13... Ne7 {[%clk 0:04:15.9]}
14. Ra6 {[%clk 0:04:07.1]} 14... Qc7 {[%clk 0:03:42.5]} 15. c3 {[%clk 0:04:06]}
15... O-O {[%clk 0:03:26.6]} 16. Qa4 {[%clk 0:04:04.4]} 16... Nd4 {[%clk
0:02:18.2]} 17. Bd3 {[%clk 0:03:50.7]} 17... Bb3 {[%clk 0:01:57.8]} 18. Qa5
{[%clk 0:03:47.1]} 18... Nc2+ {[%clk 0:01:32.8]} 19. Kd2 {[%clk 0:03:34.2]}
19... Qd7 {[%clk 0:00:40]} 20. Qb6 {[%clk 0:03:24.2]} 20... Bb4 {[%clk
0:00:14.8]} 21. Ra7 {[%clk 0:03:13]} 21... Qg4 {[%clk 0:00:09.3]} 22. Bxc2
{[%clk 0:03:09.3]} 22... Bxc2 {[%clk 0:00:06.1]} 23. Qxb4 {[%clk 0:03:02.2]}
23... Qxg2 {[%clk 0:00:05]} 24. Kxc2 {[%clk 0:03:00.8]} 24... Qxh1 {[%clk
0:00:03.8]} 25. Rxe7 {[%clk 0:02:58.9]} 25... Qxh2 {[%clk 0:00:02.3]} 26. Be3
{[%clk 0:02:57]} 26... Qh5 {[%clk 0:00:01.1]} 27. Qb5 {[%clk 0:02:54.3]} 27...
Rd8 {[%clk 0:00:00.4]} 28. Re8+ {[%clk 0:02:53.3]} 1-0

[Event "Live Chess"]
[Site "Chess.com"]
[Date "2023.05.21"]
[Round "-"]
[White "zdanevych"]
[Black "onemoretime1975"]
[Result "0-1"]
[WhiteElo "1509"]
[BlackElo "1881"]
[TimeControl "300"]
[EndTime "6:01:55 PDT"]
[Termination "onemoretime1975 won by resignation"]

1. d4 {[%clk 0:04:59.2]} 1... d5 {[%clk 0:04:57.4]} 2. c4 {[%clk 0:04:58.6]}
2... e6 {[%clk 0:04:56]} 3. Nc3 {[%clk 0:04:57.1]} 3... Nf6 {[%clk 0:04:55]} 4.
cxd5 {[%clk 0:04:55.9]} 4... exd5 {[%clk 0:04:53.6]} 5. Nf3 {[%clk 0:04:54.7]}
5... c6 {[%clk 0:04:52.1]} 6. h3 {[%clk 0:04:54.1]} 6... Bf5 {[%clk 0:04:46]} 7.
Bg5 {[%clk 0:04:49.9]} 7... Be7 {[%clk 0:04:40.7]} 8. e3 {[%clk 0:04:48.1]} 8...
h6 {[%clk 0:04:38.5]} 9. Bh4 {[%clk 0:04:47]} 9... Nbd7 {[%clk 0:04:35.9]} 10.
Be2 {[%clk 0:04:43.6]} 10... Ne4 {[%clk 0:04:31.7]} 11. Bxe7 {[%clk 0:04:41.1]}
11... Qxe7 {[%clk 0:04:29.5]} 12. O-O {[%clk 0:04:38.4]} 12... O-O {[%clk
0:04:26.5]} 13. Nd2 {[%clk 0:04:30.8]} 13... Ndf6 {[%clk 0:04:09.1]} 14. Bd3
{[%clk 0:04:20.5]} 14... Nxc3 {[%clk 0:04:03.2]} 15. bxc3 {[%clk 0:04:17.8]}
15... Bxd3 {[%clk 0:04:02]} 16. Nf3 {[%clk 0:04:16.8]} 16... Be4 {[%clk
0:03:52.9]} 17. Ne5 {[%clk 0:04:15.1]} 17... Nd7 {[%clk 0:03:50.9]} 18. Nd3
{[%clk 0:04:10.7]} 18... Bxd3 {[%clk 0:03:48.6]} 19. Qxd3 {[%clk 0:04:10.6]}
19... b5 {[%clk 0:03:44.1]} 20. a4 {[%clk 0:04:07.9]} 20... a6 {[%clk
0:03:42.8]} 21. Rfe1 {[%clk 0:03:59.8]} 21... f5 {[%clk 0:03:35.1]} 22. axb5
{[%clk 0:03:51.1]} 22... axb5 {[%clk 0:03:33.3]} 23. Rxa8 {[%clk 0:03:48.7]}
23... Rxa8 {[%clk 0:03:29.7]} 24. Qe2 {[%clk 0:03:46.5]} 24... Nf6 {[%clk
0:03:21.1]} 25. Qf3 {[%clk 0:03:44.4]} 25... g6 {[%clk 0:03:18.2]} 26. Qe2
{[%clk 0:03:36.1]} 26... Ne4 {[%clk 0:03:15.9]} 27. Qb2 {[%clk 0:03:32.6]} 27...
Qa3 {[%clk 0:03:11.8]} 0-1

[Event "Live Chess"]
[Site "Chess.com"]
[Date "2023.05.21"]
[Round "-"]
[White "yarek"]
[Black "whatnot126"]
[Result "0-1"]
[WhiteElo "1861"]
[BlackElo "2052"]
[TimeControl "300"]
[EndTime "6:02:09 PDT"]
[Termination "whatnot126 won on time"]

1. e4 {[%clk 0:04:56.7]} 1... d6 {[%clk 0:04:59]} 2. d4 {[%clk 0:04:54]} 2...
Nf6 {[%clk 0:04:58.6]} 3. Nc3 {[%clk 0:04:52.6]} 3... g6 {[%clk 0:04:57.9]} 4.
Nf3 {[%clk 0:04:51.3]} 4... Bg7 {[%clk 0:04:57.2]} 5. Be2 {[%clk 0:04:50.2]}
5... O-O {[%clk 0:04:56.7]} 6. O-O {[%clk 0:04:48.9]} 6... a6 {[%clk 0:04:51.3]}
7. h3 {[%clk 0:04:46.8]} 7... b5 {[%clk 0:04:50.6]} 8. a3 {[%clk 0:04:44.9]}
8... Bb7 {[%clk 0:04:48.8]} 9. d5 {[%clk 0:04:32.7]} 9... e6 {[%clk 0:04:45.6]}
10. Bg5 {[%clk 0:04:20.1]} 10... Nbd7 {[%clk 0:04:44.8]} 11. Re1 {[%clk
0:04:07.3]} 11... h6 {[%clk 0:04:43.7]} 12. Bh4 {[%clk 0:04:05.2]} 12... g5
{[%clk 0:04:34.7]} 13. Bg3 {[%clk 0:04:03.2]} 13... Nc5 {[%clk 0:04:34.2]} 14.
Bd3 {[%clk 0:03:52.8]} 14... exd5 {[%clk 0:04:18.1]} 15. exd5 {[%clk 0:03:49.2]}
15... Nxd5 {[%clk 0:04:15.5]} 16. Nxd5 {[%clk 0:03:30.4]} 16... Bxd5 {[%clk
0:04:15.4]} 17. c3 {[%clk 0:03:21.2]} 17... Bb7 {[%clk 0:03:51]} 18. Bc2 {[%clk
0:03:05.6]} 18... f5 {[%clk 0:03:37.5]} 19. Nd4 {[%clk 0:02:40.1]} 19... Qd7
{[%clk 0:03:09.8]} 20. Qh5 {[%clk 0:02:23.4]} 20... Ne4 {[%clk 0:03:05.5]} 21.
Bh2 {[%clk 0:02:06.1]} 21... c5 {[%clk 0:02:59.9]} 22. Nf3 {[%clk 0:01:41.6]}
22... Nf6 {[%clk 0:02:44.7]} 23. Qg6 {[%clk 0:01:35.3]} 23... Qc6 {[%clk
0:02:23]} 24. Bxf5 {[%clk 0:01:30.5]} 24... Rae8 {[%clk 0:02:09.5]} 25. Be6+
{[%clk 0:00:47.9]} 25... Kh8 {[%clk 0:02:06.5]} 26. Bf7 {[%clk 0:00:41.2]} 26...
Rxf7 {[%clk 0:02:00]} 27. Qxf7 {[%clk 0:00:38.1]} 27... Rf8 {[%clk 0:01:59.3]}
28. Qg6 {[%clk 0:00:32.3]} 28... Ne4 {[%clk 0:01:55.8]} 29. Rad1 {[%clk
0:00:17.5]} 29... Rf6 {[%clk 0:01:54.4]} 30. Qh5 {[%clk 0:00:14]} 30... b4
{[%clk 0:01:45.4]} 31. Re3 {[%clk 0:00:12.9]} 31... bxa3 {[%clk 0:01:40.3]} 32.
bxa3 {[%clk 0:00:11.7]} 32... Qb5 {[%clk 0:01:36.3]} 33. Rde1 {[%clk 0:00:10.1]}
33... d5 {[%clk 0:01:34.7]} 34. Ne5 {[%clk 0:00:05.3]} 34... Qb2 {[%clk
0:01:28.9]} 35. Ng6+ {[%clk 0:00:04.8]} 35... Rxg6 {[%clk 0:01:27]} 36. Qxg6
{[%clk 0:00:03.2]} 36... Qxf2+ {[%clk 0:01:26.3]} 37. Kh1 {[%clk 0:00:00.7]}
37... Qf8 {[%clk 0:01:24.7]} 0-1

[Event "Live Chess"]
[Site "Chess.com"]
[Date "2023.05.21"]
[Round "-"]
[White "MaximKhimchenko"]
[Black "Olisingapore"]
[Result "0-1"]
[WhiteElo "1402"]
[BlackElo "1785"]
[TimeControl "300"]
[EndTime "6:02:11 PDT"]
[Termination "Olisingapore won - game abandoned"]

1. e4 {[%clk 0:04:57.8]} 1... c5 {[%clk 0:04:57.6]} 2. Nf3 {[%clk 0:04:57.7]}
2... d6 {[%clk 0:04:54.8]} 3. c3 {[%clk 0:04:57]} 3... Nf6 {[%clk 0:04:53.4]} 4.
d4 {[%clk 0:04:56.6]} 4... Nxe4 {[%clk 0:04:32.9]} 5. Bd3 {[%clk 0:04:51.8]}
5... Nf6 {[%clk 0:04:29.4]} 6. O-O {[%clk 0:04:49.4]} 6... cxd4 {[%clk
0:04:25.1]} 7. cxd4 {[%clk 0:04:46]} 7... Nbd7 {[%clk 0:04:24.3]} 8. Nc3 {[%clk
0:04:44.2]} 8... g6 {[%clk 0:04:21]} 9. Re1 {[%clk 0:04:42.4]} 9... Bg7 {[%clk
0:04:16.7]} 10. Bg5 {[%clk 0:04:40.5]} 10... O-O {[%clk 0:04:14.1]} 11. Ne4
{[%clk 0:04:03.2]} 11... Nxe4 {[%clk 0:03:56.6]} 12. Bxe4 {[%clk 0:04:03.1]}
12... h6 {[%clk 0:03:52]} 13. Bh4 {[%clk 0:03:58.4]} 13... Nf6 {[%clk
0:03:50.9]} 14. Bxf6 {[%clk 0:03:55.6]} 14... Bxf6 {[%clk 0:03:49.2]} 15. Rc1
{[%clk 0:03:54.4]} 15... Bg4 {[%clk 0:03:42.9]} 16. h3 {[%clk 0:03:44.1]} 16...
Bxf3 {[%clk 0:03:33.2]} 17. Qxf3 {[%clk 0:03:34.1]} 17... Qb6 {[%clk 0:03:32.1]}
18. b3 {[%clk 0:03:29]} 18... Bxd4 {[%clk 0:03:23.1]} 19. Rc4 {[%clk 0:03:25.2]}
19... Rac8 {[%clk 0:03:08.7]} 20. Bd5 {[%clk 0:03:20.1]} 20... e6 {[%clk
0:03:01.3]} 21. Rxc8 {[%clk 0:03:18.2]} 21... Rxc8 {[%clk 0:02:58.8]} 22. Bxb7
{[%clk 0:03:17]} 22... Rc3 {[%clk 0:02:44.6]} 23. Qe4 {[%clk 0:03:09.2]} 23...
Bxf2+ {[%clk 0:02:39.3]} 24. Kh2 {[%clk 0:03:07.8]} 24... Bxe1 {[%clk
0:02:33.9]} 25. Qxe1 {[%clk 0:03:06]} 25... Re3 {[%clk 0:02:23.9]} 26. Qg1
{[%clk 0:02:58.6]} 26... Re2 {[%clk 0:02:13.4]} 27. Bf3 {[%clk 0:02:53.2]} 27...
Qxg1+ {[%clk 0:02:09.5]} 28. Kxg1 {[%clk 0:02:52.2]} 28... Rxa2 {[%clk
0:02:09.1]} 29. Bc6 {[%clk 0:02:27.8]} 29... Ra1+ {[%clk 0:01:59.8]} 0-1

[Event "Live Chess"]
[Site "Chess.com"]
[Date "2023.05.21"]
[Round "-"]
[White "nigelst"]
[Black "friarnator"]
[Result "0-1"]
[WhiteElo "1709"]
[BlackElo "2019"]
[TimeControl "300"]
[EndTime "6:02:16 PDT"]
[Termination "friarnator won by resignation"]

1. e4 {[%clk 0:04:58.6]} 1... d6 {[%clk 0:04:55.4]} 2. d4 {[%clk 0:04:56.2]}
2... Nf6 {[%clk 0:04:54.8]} 3. Nc3 {[%clk 0:04:55.1]} 3... g6 {[%clk 0:04:54.2]}
4. f4 {[%clk 0:04:54.3]} 4... Bg7 {[%clk 0:04:53.4]} 5. e5 {[%clk 0:04:53.7]}
5... dxe5 {[%clk 0:04:47.2]} 6. dxe5 {[%clk 0:04:52]} 6... Qxd1+ {[%clk
0:04:45.2]} 7. Kxd1 {[%clk 0:04:51.5]} 7... Ng4 {[%clk 0:04:42.3]} 8. Ke1 {[%clk
0:04:50.8]} 8... c6 {[%clk 0:04:38]} 9. h3 {[%clk 0:04:49.7]} 9... Nh6 {[%clk
0:04:37.3]} 10. g4 {[%clk 0:04:48.6]} 10... f6 {[%clk 0:04:33.3]} 11. exf6
{[%clk 0:04:43.6]} 11... exf6 {[%clk 0:04:33.2]} 12. Kf2 {[%clk 0:04:37.1]}
12... f5 {[%clk 0:04:31.8]} 13. g5 {[%clk 0:04:33.8]} 13... Nf7 {[%clk 0:04:31]}
14. Bd2 {[%clk 0:04:29.6]} 14... O-O {[%clk 0:04:27.8]} 15. Bc4 {[%clk
0:04:28.3]} 15... Nd7 {[%clk 0:04:24.2]} 16. Nf3 {[%clk 0:04:25.8]} 16... Nb6
{[%clk 0:04:23.2]} 17. Bb3 {[%clk 0:04:23.5]} 17... a5 {[%clk 0:04:19.2]} 18.
Na4 {[%clk 0:04:14.5]} 18... Nxa4 {[%clk 0:04:16.3]} 19. Bxa4 {[%clk 0:04:13.4]}
19... b5 {[%clk 0:04:15.6]} 20. Bb3 {[%clk 0:04:12]} 20... a4 {[%clk 0:04:14.5]}
21. Bxf7+ {[%clk 0:04:09.9]} 21... Rxf7 {[%clk 0:04:14.4]} 22. c3 {[%clk
0:04:01.1]} 22... Be6 {[%clk 0:04:07.4]} 23. Rhe1 {[%clk 0:03:59.8]} 23... Bd5
{[%clk 0:04:04.7]} 24. Be3 {[%clk 0:03:41]} 24... a3 {[%clk 0:04:02.7]} 25. Bd4
{[%clk 0:03:31.7]} 25... axb2 {[%clk 0:04:00.8]} 26. Rab1 {[%clk 0:03:26.6]}
26... Rxa2 {[%clk 0:03:58.6]} 27. Bxg7 {[%clk 0:03:22.1]} 27... Kxg7 {[%clk
0:03:45.2]} 28. Ne5 {[%clk 0:03:13.5]} 28... Re7 {[%clk 0:03:43.7]} 29. Re2
{[%clk 0:03:09.7]} 29... Be4 {[%clk 0:03:23.2]} 30. Rbxb2 {[%clk 0:03:06.4]}
30... Rxb2 {[%clk 0:03:21.8]} 31. Rxb2 {[%clk 0:03:00.5]} 31... Ra7 {[%clk
0:03:17.7]} 32. Rd2 {[%clk 0:02:53.2]} 32... Kf8 {[%clk 0:03:10]} 33. Rd8+
{[%clk 0:02:33.9]} 33... Ke7 {[%clk 0:03:05.5]} 34. Rc8 {[%clk 0:02:21.2]} 34...
Ra3 {[%clk 0:02:48.1]} 35. Nxc6+ {[%clk 0:01:58.2]} 35... Kd7 {[%clk 0:02:44.2]}
36. Rh8 {[%clk 0:01:46.7]} 36... Kxc6 {[%clk 0:02:38.1]} 37. Rxh7 {[%clk
0:01:45.5]} 37... Rxc3 {[%clk 0:02:37.5]} 38. Rh8 {[%clk 0:01:43.8]} 38... b4
{[%clk 0:02:33.2]} 39. Rg8 {[%clk 0:01:41.7]} 39... Rxh3 {[%clk 0:02:30.7]} 40.
Rxg6+ {[%clk 0:01:39.8]} 40... Kd7 {[%clk 0:02:27.4]} 41. Rb6 {[%clk 0:01:31]}
41... b3 {[%clk 0:02:26.4]} 42. g6 {[%clk 0:01:29.6]} 42... Ke7 {[%clk
0:02:23.2]} 43. g7 {[%clk 0:01:24]} 43... Kf7 {[%clk 0:02:21.7]} 44. Rg6 {[%clk
0:01:17.2]} 44... Kg8 {[%clk 0:02:14.1]} 45. Rb6 {[%clk 0:01:01.7]} 45... Kxg7
{[%clk 0:02:09.4]} 46. Rb8 {[%clk 0:00:48.5]} 46... b2 {[%clk 0:02:05.6]} 47.
Ke2 {[%clk 0:00:43]} 47... b1=Q {[%clk 0:02:04.3]} 0-1

[Event "Live Chess"]
[Site "Chess.com"]
[Date "2023.05.21"]
[Round "-"]
[White "Ian-Morley"]
[Black "AlanPaling"]
[Result "1/2-1/2"]
[WhiteElo "1060"]
[BlackElo "1355"]
[TimeControl "300"]
[EndTime "6:02:18 PDT"]
[Termination "Game drawn - timeout vs insufficient material"]

1. e4 {[%clk 0:04:57.9]} 1... Nf6 {[%clk 0:04:58.6]} 2. e5 {[%clk 0:04:56.7]}
2... Nd5 {[%clk 0:04:57.7]} 3. d4 {[%clk 0:04:55.2]} 3... d6 {[%clk 0:04:56.6]}
4. c4 {[%clk 0:04:54.6]} 4... Nb6 {[%clk 0:04:55.2]} 5. c5 {[%clk 0:04:54]} 5...
dxc5 {[%clk 0:04:51.2]} 6. dxc5 {[%clk 0:04:52]} 6... Qxd1+ {[%clk 0:04:49.7]}
7. Kxd1 {[%clk 0:04:51.3]} 7... N6d7 {[%clk 0:04:46.1]} 8. b4 {[%clk 0:04:49.2]}
8... Nxe5 {[%clk 0:04:44.1]} 9. Bb2 {[%clk 0:04:48.7]} 9... Ng6 {[%clk
0:04:37.5]} 10. h4 {[%clk 0:04:47]} 10... h5 {[%clk 0:04:29.7]} 11. Nf3 {[%clk
0:04:37.7]} 11... Bg4 {[%clk 0:04:25.5]} 12. Bc4 {[%clk 0:04:35.2]} 12... Bxf3+
{[%clk 0:04:01.2]} 13. gxf3 {[%clk 0:04:33.3]} 13... Nd7 {[%clk 0:03:55.5]} 14.
Nd2 {[%clk 0:04:29.3]} 14... c6 {[%clk 0:03:54]} 15. Ne4 {[%clk 0:04:28]} 15...
e6 {[%clk 0:03:44.5]} 16. Ng5 {[%clk 0:04:26.2]} 16... Nf4 {[%clk 0:03:25.5]}
17. Bc1 {[%clk 0:04:21.8]} 17... Nd5 {[%clk 0:03:15.4]} 18. Bxd5 {[%clk
0:04:20.3]} 18... cxd5 {[%clk 0:03:13.6]} 19. Ke2 {[%clk 0:04:16]} 19... Be7
{[%clk 0:03:06.7]} 20. Bf4 {[%clk 0:04:11.8]} 20... Bf6 {[%clk 0:03:03.7]} 21.
Rac1 {[%clk 0:04:05.5]} 21... O-O {[%clk 0:02:57.7]} 22. Bd6 {[%clk 0:04:01.5]}
22... Rfe8 {[%clk 0:02:50.8]} 23. b5 {[%clk 0:03:57.2]} 23... Rac8 {[%clk
0:02:47.5]} 24. c6 {[%clk 0:03:56.1]} 24... bxc6 {[%clk 0:02:45.2]} 25. bxc6
{[%clk 0:03:55.4]} 25... Nb6 {[%clk 0:02:38.9]} 26. a4 {[%clk 0:03:52.6]} 26...
Nc4 {[%clk 0:02:31.2]} 27. Bf4 {[%clk 0:03:29.9]} 27... Rxc6 {[%clk 0:02:28.6]}
28. a5 {[%clk 0:03:28.5]} 28... Ra6 {[%clk 0:02:24.8]} 29. Rb1 {[%clk
0:03:20.7]} 29... Rxa5 {[%clk 0:02:16.5]} 30. Rb7 {[%clk 0:03:18.1]} 30... Be7
{[%clk 0:02:02.4]} 31. Rg1 {[%clk 0:03:14.4]} 31... Ra6 {[%clk 0:01:56.2]} 32.
Nh3 {[%clk 0:03:10.5]} 32... f6 {[%clk 0:01:45.3]} 33. Bh6 {[%clk 0:03:01.8]}
33... Ra2+ {[%clk 0:01:29.9]} 34. Kd3 {[%clk 0:02:56]} 34... Ne5+ {[%clk
0:01:26.7]} 35. Kc3 {[%clk 0:02:52.5]} 35... g5 {[%clk 0:01:10.3]} 36. hxg5
{[%clk 0:02:43.8]} 36... f5 {[%clk 0:01:08.4]} 37. Nf4 {[%clk 0:02:39]} 37...
Ra3+ {[%clk 0:01:00.8]} 38. Rb3 {[%clk 0:02:35.1]} 38... Rxb3+ {[%clk 0:00:56]}
39. Kxb3 {[%clk 0:02:34.2]} 39... Bf8 {[%clk 0:00:52.3]} 40. Bxf8 {[%clk
0:02:30.3]} 40... Kxf8 {[%clk 0:00:49.6]} 41. Nxh5 {[%clk 0:02:26.3]} 41... Nxf3
{[%clk 0:00:43.1]} 42. Ra1 {[%clk 0:02:23.5]} 42... Re7 {[%clk 0:00:40.1]} 43.
Ng3 {[%clk 0:02:20.3]} 43... d4 {[%clk 0:00:33.9]} 44. Ne2 {[%clk 0:02:17.6]}
44... d3 {[%clk 0:00:32.6]} 45. Nc3 {[%clk 0:02:14]} 45... d2 {[%clk 0:00:31.2]}
46. Nd1 {[%clk 0:02:13.2]} 46... Nxg5 {[%clk 0:00:25.3]} 47. Kc2 {[%clk
0:02:11.7]} 47... Ne4 {[%clk 0:00:20.3]} 48. f3 {[%clk 0:02:09.7]} 48... Ng5
{[%clk 0:00:16.3]} 49. Kxd2 {[%clk 0:02:08.7]} 49... Nxf3+ {[%clk 0:00:14.5]}
50. Ke2 {[%clk 0:02:07]} 50... Nd4+ {[%clk 0:00:12.9]} 51. Ke3 {[%clk
0:02:04.8]} 51... e5 {[%clk 0:00:10.1]} 52. Nc3 {[%clk 0:02:02.5]} 52... Kf7
{[%clk 0:00:05.9]} 53. Nd5 {[%clk 0:01:59.9]} 53... Rd7 {[%clk 0:00:02.2]} 54.
Nc3 {[%clk 0:01:55.6]} 54... Nc2+ {[%clk 0:00:00.7]} 55. Kf3 {[%clk 0:01:52.9]}
55... Nxa1 {[%clk 0:00:00.6]} 56. Nb5 {[%clk 0:01:50.3]} 1/2-1/2

[Event "Live Chess"]
[Site "Chess.com"]
[Date "2023.05.21"]
[Round "-"]
[White "Hacker_2009"]
[Black "LiamBellwood"]
[Result "1-0"]
[WhiteElo "1931"]
[BlackElo "1914"]
[TimeControl "300"]
[EndTime "6:02:23 PDT"]
[Termination "Hacker_2009 won by resignation"]

1. d4 {[%clk 0:04:58.8]} 1... e6 {[%clk 0:04:59.9]} 2. Nf3 {[%clk 0:04:55.4]}
2... f5 {[%clk 0:04:59.2]} 3. c4 {[%clk 0:04:52]} 3... Nf6 {[%clk 0:04:58.3]} 4.
Nc3 {[%clk 0:04:50.2]} 4... Bb4 {[%clk 0:04:57.7]} 5. Bd2 {[%clk 0:04:48]} 5...
Bxc3 {[%clk 0:04:56.4]} 6. Bxc3 {[%clk 0:04:47.2]} 6... b6 {[%clk 0:04:56.3]} 7.
e3 {[%clk 0:04:46.7]} 7... Bb7 {[%clk 0:04:56.2]} 8. Be2 {[%clk 0:04:46.2]} 8...
Ne4 {[%clk 0:04:55.7]} 9. Qc2 {[%clk 0:04:44.5]} 9... O-O {[%clk 0:04:55.6]} 10.
O-O {[%clk 0:04:43]} 10... d6 {[%clk 0:04:55.1]} 11. b3 {[%clk 0:04:40.3]} 11...
Nd7 {[%clk 0:04:54.5]} 12. Bb2 {[%clk 0:04:39.2]} 12... Ndf6 {[%clk 0:04:53.7]}
13. Rac1 {[%clk 0:04:38.7]} 13... a5 {[%clk 0:04:41.5]} 14. Rfd1 {[%clk
0:04:32.9]} 14... Ng4 {[%clk 0:04:34.1]} 15. Rf1 {[%clk 0:04:24.4]} 15... Ngf6
{[%clk 0:04:32.9]} 16. Rfd1 {[%clk 0:04:21.9]} 16... Ng4 {[%clk 0:04:31.6]} 17.
Rf1 {[%clk 0:04:21]} 17... Qe8 {[%clk 0:04:31.2]} 18. h3 {[%clk 0:04:19.8]}
18... Ngf6 {[%clk 0:04:19.5]} 19. Ba3 {[%clk 0:04:15]} 19... Qg6 {[%clk
0:04:10.1]} 20. c5 {[%clk 0:04:10.5]} 20... Nd5 {[%clk 0:03:59.6]} 21. cxd6
{[%clk 0:04:05.7]} 21... cxd6 {[%clk 0:03:53.8]} 22. Nd2 {[%clk 0:03:59.5]}
22... Nb4 {[%clk 0:03:42.1]} 23. Bxb4 {[%clk 0:03:55.8]} 23... Nxd2 {[%clk
0:03:41.3]} 24. Bxd2 {[%clk 0:03:54.3]} 24... Qg3 {[%clk 0:03:40.3]} 25. fxg3
{[%clk 0:03:52.4]} 1-0

[Event "Live Chess"]
[Site "Chess.com"]
[Date "2023.05.21"]
[Round "-"]
[White "MarkLim1"]
[Black "kevinmilleruk"]
[Result "1-0"]
[WhiteElo "1708"]
[BlackElo "1149"]
[TimeControl "300"]
[EndTime "6:02:37 PDT"]
[Termination "MarkLim1 won by resignation"]

1. e4 {[%clk 0:04:58.7]} 1... e5 {[%clk 0:04:58.9]} 2. Bc4 {[%clk 0:04:57.4]}
2... Nf6 {[%clk 0:04:57.7]} 3. d3 {[%clk 0:04:56.4]} 3... Nc6 {[%clk 0:04:55.2]}
4. Nf3 {[%clk 0:04:55.5]} 4... Bc5 {[%clk 0:04:51.3]} 5. O-O {[%clk 0:04:54.5]}
5... d6 {[%clk 0:04:49]} 6. Nbd2 {[%clk 0:04:52.4]} 6... Bg4 {[%clk 0:04:48.1]}
7. h3 {[%clk 0:04:51.2]} 7... Bxf3 {[%clk 0:04:46.7]} 8. Qxf3 {[%clk 0:04:50.1]}
8... Nd4 {[%clk 0:04:44.8]} 9. Qd1 {[%clk 0:04:48.7]} 9... O-O {[%clk 0:04:43]}
10. c3 {[%clk 0:04:47.6]} 10... Ne6 {[%clk 0:04:37.6]} 11. Re1 {[%clk
0:04:43.5]} 11... a6 {[%clk 0:04:27.4]} 12. Nf1 {[%clk 0:04:41.1]} 12... h6
{[%clk 0:04:23.8]} 13. Be3 {[%clk 0:04:34.8]} 13... b5 {[%clk 0:04:20]} 14. Bb3
{[%clk 0:04:33.6]} 14... a5 {[%clk 0:04:18.2]} 15. d4 {[%clk 0:04:31.9]} 15...
exd4 {[%clk 0:04:08.8]} 16. cxd4 {[%clk 0:04:30.5]} 16... Bb6 {[%clk 0:04:04.3]}
17. Bc2 {[%clk 0:04:28.4]} 17... d5 {[%clk 0:04:00.6]} 18. e5 {[%clk 0:04:27.1]}
18... Ne4 {[%clk 0:03:58.9]} 19. Rc1 {[%clk 0:04:13.3]} 19... c5 {[%clk
0:03:48.6]} 20. Bxe4 {[%clk 0:03:57.7]} 20... dxe4 {[%clk 0:03:44]} 21. dxc5
{[%clk 0:03:56.3]} 21... Ba7 {[%clk 0:03:40.4]} 22. Qg4 {[%clk 0:03:48.8]} 22...
Ng5 {[%clk 0:03:33]} 23. h4 {[%clk 0:03:39.5]} 23... Nh7 {[%clk 0:03:19.7]} 24.
Bxh6 {[%clk 0:03:37]} 24... g6 {[%clk 0:03:16.2]} 25. Bxf8 {[%clk 0:03:32]}
25... Qxf8 {[%clk 0:03:14.9]} 26. e6 {[%clk 0:03:28.4]} 26... fxe6 {[%clk
0:03:11.8]} 27. Qxg6+ {[%clk 0:03:26]} 27... Kh8 {[%clk 0:03:06.7]} 28. Qxe4
{[%clk 0:03:19.3]} 28... Bxc5 {[%clk 0:03:04]} 29. Qe5+ {[%clk 0:03:16.8]} 29...
Kg8 {[%clk 0:03:00.8]} 30. Qxc5 {[%clk 0:03:10]} 30... Qf7 {[%clk 0:02:58.5]}
31. Re3 {[%clk 0:03:01.3]} 31... Rf8 {[%clk 0:02:41.6]} 32. Rf3 {[%clk
0:02:57.8]} 32... Qg7 {[%clk 0:02:29.2]} 33. Rxf8+ {[%clk 0:02:56.1]} 33... Nxf8
{[%clk 0:02:27.6]} 34. Qg5 {[%clk 0:02:53.4]} 34... Qxg5 {[%clk 0:02:26.1]} 35.
hxg5 {[%clk 0:02:52.7]} 1-0

[Event "Live Chess"]
[Site "Chess.com"]
[Date "2023.05.21"]
[Round "-"]
[White "JoeRoot66"]
[Black "Duke_of_Bebington"]
[Result "1-0"]
[WhiteElo "1892"]
[BlackElo "1567"]
[TimeControl "300"]
[EndTime "6:03:03 PDT"]
[Termination "JoeRoot66 won by resignation"]

1. e4 {[%clk 0:04:55.9]} 1... e5 {[%clk 0:04:58.1]} 2. Nc3 {[%clk 0:04:54.7]}
2... Nf6 {[%clk 0:04:55.7]} 3. f4 {[%clk 0:04:53.8]} 3... d6 {[%clk 0:04:53.3]}
4. Nf3 {[%clk 0:04:52.4]} 4... Be7 {[%clk 0:04:51.7]} 5. fxe5 {[%clk 0:04:51.3]}
5... dxe5 {[%clk 0:04:48.9]} 6. Nxe5 {[%clk 0:04:50.6]} 6... Bb4 {[%clk
0:04:42.9]} 7. Qf3 {[%clk 0:04:40.3]} 7... Bxc3 {[%clk 0:04:39]} 8. bxc3 {[%clk
0:04:38.2]} 8... O-O {[%clk 0:04:33.9]} 9. d4 {[%clk 0:04:36.5]} 9... Bg4 {[%clk
0:04:31.3]} 10. Nxg4 {[%clk 0:04:34.6]} 10... Re8 {[%clk 0:04:25.3]} 11. Bg5
{[%clk 0:04:31.6]} 11... Rxe4+ {[%clk 0:04:20.9]} 12. Qxe4 {[%clk 0:04:29.7]}
12... Nxe4 {[%clk 0:04:19]} 13. Bxd8 {[%clk 0:04:29.6]} 13... Nxc3 {[%clk
0:04:17.7]} 14. Bxc7 {[%clk 0:04:27.9]} 1-0